bitfinex-derivatives/quotes_ETHF0:USTF0_20250902
["timestamp","ask_amount","ask_price","bid_price","bid_amount"]
[1756822260554,0.3964,4366.0,4365.1,3.2078]
[1756822260753,0.3964,4366.5,4365.6,3.2292]
[1756822260953,1.3598,4366.5,4366.4,3.2078]
[1756822261159,1.93916041,4366.5,4366.4,3.4718]
[1756822261356,1.3598,4366.5,4366.4,0.264]
[1756822261558,1.3598,4366.5,4366.3,0.264]
[1756822261758,0.9634,4366.4,4366.2,3.4718]
[1756822261960,0.9634,4367.1,4366.3,3.4718]
[1756822262271,0.9634,4366.8,4366.4,0.55232327]
[1756822262472,1.3598,4367.0,4366.4,41.064]
[1756822262766,0.3964,4368.0,4366.8,3.2078]
[1756822262973,0.3964,4368.0,4367.3,3.2078]
[1756822262974,0.57901201,4367.9,4367.3,3.2078]
[1756822263174,0.9634,4367.7,4367.4,0.263]
[1756822263466,1.3598,4368.0,4367.4,0.263]
[1756822263668,0.9634,4367.4,4367.3,3.2078]
[1756822263870,0.9634,4367.4,4367.3,3.4708]
[1756822264570,0.9634,4367.9,4367.3,0.263]
[1756822264870,0.3964,4369.0,4367.8,3.2078]
[1756822265170,0.9634,4368.4,4368.3,3.2078]
[1756822265366,0.9634,4368.4,4367.8,3.2078]
[1756822265564,0.3964,4368.0,4367.8,44.0078]
[1756822265766,0.9634,4367.9,4367.8,3.2078]
[1756822265967,0.3964,4368.0,4367.8,3.4708]
[1756822266276,0.3964,4368.5,4367.8,3.4708]
[1756822266573,0.3964,4369.0,4368.3,3.2078]
[1756822266770,0.3964,4369.0,4368.4,0.263]
[1756822266964,0.9634,4368.8,4368.5,0.263]
[1756822267170,0.9634,4368.8,4367.9,40.8]
[1756822267364,0.3964,4369.0,4367.8,3.2078]
[1756822267365,0.9634,4367.9,4367.8,3.2078]
[1756822267564,0.9634,4367.9,4367.8,3.4708]
[1756822268083,0.3964,4368.5,4367.8,3.4708]
[1756822268084,1.3598,4368.5,4367.8,3.4708]
[1756822268365,0.3964,4369.0,4368.3,3.2078]
[1756822268574,0.9634,4369.6,4368.8,3.2078]
[1756822268872,0.9634,4369.6,4368.8,3.4708]
[1756822269065,0.3964,4370.0,4368.8,7.4708]
[1756822269365,0.3964,4370.0,4368.8,3.2078]
[1756822269567,1.1239,4368.9,4368.8,3.2078]
[1756822269771,1.1239,4368.9,4368.8,3.4708]
[1756822270165,1.1239,4368.9,4368.8,3.2078]
[1756822270364,5.1239,4368.9,4368.8,0.263]
[1756822270564,0.3953,4368.5,4368.3,3.2078]
[1756822270770,0.9539,4368.4,4368.3,3.2078]
[1756822270968,0.9539,4368.4,4368.3,3.4708]
[1756822271167,0.9539,4368.4,4368.3,0.263]
[1756822271367,0.3953,4368.5,4367.8,3.2078]
[1756822271573,0.9539,4367.9,4367.8,3.2078]
[1756822271767,0.9539,4367.9,4367.8,3.4708]
[1756822272672,0.3953,4368.5,4367.8,3.4708]
[1756822272866,0.17,4368.9,4368.3,3.2078]
[1756822273069,0.17,4368.9,4368.8,3.2078]
[1756822273269,1.1239,4368.9,4368.8,3.2078]
[1756822273476,1.1239,4368.9,4368.7,0.263]
[1756822273477,0.9539,4368.8,4368.7,0.263]
[1756822273668,0.3953,4368.5,4368.2,3.2078]
[1756822273870,0.9539,4368.4,4368.2,3.2078]
[1756822274362,0.9539,4368.9,4368.2,3.2078]
[1756822274567,2.0637,4369.6,4368.2,3.2078]
[1756822274568,0.9539,4369.4,4368.3,0.263]
[1756822275770,0.3953,4369.5,4368.2,3.2078]
[1756822275977,0.3953,4369.5,4368.2,3.4708]
[1756822276279,0.9539,4369.4,4368.2,3.4708]
[1756822276466,0.3953,4369.5,4368.2,3.4708]
[1756822276662,0.9539,4369.4,4368.3,0.9326]
[1756822276874,0.9539,4369.9,4368.8,0.9326]
[1756822277071,0.9539,4369.9,4369.2,3.2078]
[1756822277279,0.9539,4369.9,4369.3,0.263]
[1756822277465,0.3953,4370.5,4369.4,0.263]
[1756822277769,0.3953,4370.0,4369.2,3.2078]
[1756822277973,0.9539,4369.9,4369.2,3.2078]
[1756822278365,0.9539,4369.9,4369.2,3.4708]
[1756822278567,0.9539,4369.4,4368.1,3.2078]
[1756822278874,0.9539,4369.4,4368.2,0.263]
[1756822279074,0.9539,4369.4,4368.6,3.2078]
[1756822279466,3.2078,4369.6,4368.0,3.2078]
[1756822279467,0.3953,4369.5,4368.0,3.2078]
[1756822279663,1.53237735,4369.4,4368.0,4.1404]
[1756822279869,0.9539,4369.4,4368.0,4.1404]
[1756822280066,0.9539,4369.4,4368.5,3.2078]
[1756822280266,0.3953,4369.5,4368.6,0.263]
[1756822280469,1.53268984,4369.4,4368.6,0.263]
[1756822280670,0.9539,4369.4,4368.6,0.263]
[1756822280870,0.3953,4369.5,4368.5,3.2078]
[1756822281066,0.57878514,4369.4,4368.5,3.2078]
[1756822281267,0.3953,4369.5,4368.5,3.2078]
[1756822281268,0.9539,4369.2,4368.5,3.2078]
[1756822281472,0.3953,4369.5,4368.5,3.2078]
[1756822281677,0.9539,4369.3,4368.5,3.2078]
[1756822281878,0.9539,4369.4,4368.5,3.2078]
[1756822282070,0.57907128,4369.3,4368.5,3.2078]
[1756822282270,0.57942214,4369.2,4368.5,3.2078]
[1756822282474,0.9539,4369.4,4368.5,3.2078]
[1756822282674,0.3953,4369.5,4368.1,0.263]
[1756822282675,0.5794197,4369.3,4368.1,0.263]
[1756822282877,0.3953,4369.0,4368.0,3.2078]
[1756822283176,0.3953,4369.0,4365.5,0.3631]
[1756822283177,0.3953,4368.0,4367.0,3.2078]
[1756822283475,0.3953,4368.5,4367.5,3.2078]
[1756822283775,0.84299523,4368.4,4367.5,3.2078]
[1756822284073,0.3953,4368.0,4366.3,3.2078]
[1756822284374,3.2078,4367.1,4366.3,3.2078]
[1756822284572,0.9539,4366.9,4366.3,3.2078]
[1756822285164,3.2078,4367.1,4366.3,3.2078]
[1756822285368,0.58115666,4367.0,4366.3,3.2078]
[1756822285577,0.9539,4366.9,4366.3,3.2078]
[1756822285872,0.9539,4366.9,4366.8,3.2078]
[1756822286266,1.53550401,4366.9,4366.2,3.4708]
[1756822286472,0.9539,4367.4,4366.8,3.2078]
[1756822286670,3.2078,4367.8,4366.8,3.2078]
[1756822286870,1.53546815,4367.7,4367.3,3.2078]
[1756822287066,0.58156815,4367.6,4367.3,4.1404]
[1756822287278,0.9539,4367.4,4367.3,3.2078]
[1756822287470,0.9539,4367.7,4367.3,3.2078]
[1756822287677,0.9539,4367.5,4367.3,3.2078]
[1756822287868,0.9539,4367.3,4366.1,3.2078]
[1756822288073,3.2078,4366.3,4365.7,0.262]
[1756822288272,0.9539,4366.2,4365.6,0.262]
[1756822288487,0.9539,4366.2,4365.8,3.2078]
[1756822288774,0.9539,4366.8,4365.8,3.2078]
[1756822288970,0.58302353,4366.7,4366.4,3.2078]
[1756822289169,0.3953,4367.0,4365.8,3.2078]
[1756822289170,0.9539,4366.5,4365.8,3.2078]
[1756822289373,0.58302353,4366.4,4365.9,0.262]
[1756822289569,0.58302353,4366.3,4365.9,0.262]
[1756822289775,5.39227682,4367.3,4366.2,3.2078]
[1756822289974,0.9539,4367.1,4366.2,4.1404]
[1756822290183,0.58340933,4367.0,4366.2,0.9326]
[1756822290373,0.9539,4367.4,4365.0,0.1912]
[1756822290575,3.2078,4366.8,4365.4,0.9326]
[1756822290773,0.9539,4366.6,4365.4,0.9326]
[1756822291080,1.23057682,4367.1,4365.1,40.8]
[1756822291081,0.58331095,4366.5,4365.9,0.9326]
[1756822291277,0.9539,4367.0,4366.4,3.2078]
[1756822291582,0.9539,4366.8,4366.4,3.2078]
[1756822291778,0.58332148,4366.7,4366.4,3.2078]
[1756822291979,1.53722148,4366.6,4365.9,3.2078]
[1756822292184,0.9539,4366.4,4365.4,0.9326]
[1756822292385,0.9539,4366.2,4365.3,3.2078]
[1756822292581,0.9539,4365.9,4365.3,3.2078]
[1756822292779,0.9539,4365.7,4365.3,3.2078]
[1756822292980,0.58332148,4365.6,4365.4,0.9326]
[1756822293185,3.2078,4366.4,4365.3,3.2078]
[1756822293485,0.9539,4366.2,4365.3,3.2078]
[1756822293779,0.9539,4366.0,4365.3,3.2078]
[1756822293981,0.9539,4366.5,4365.9,3.2078]
[1756822294185,0.5829429,4366.4,4366.0,0.9326]
[1756822294385,0.9539,4367.2,4366.3,3.2078]
[1756822294585,0.58222623,4367.1,4366.4,0.9326]
[1756822294780,0.58222623,4367.0,4366.4,0.9326]
[1756822294979,0.9539,4367.6,4366.9,3.2078]
[1756822295286,0.58216781,4367.5,4366.9,3.2078]
[1756822295482,0.9539,4367.3,4366.4,3.2078]
[1756822295675,3.78996781,4367.4,4366.4,3.2078]
[1756822295676,0.3953,4367.0,4366.4,3.2078]
[1756822295879,0.3953,4367.0,4365.9,3.2078]
[1756822295880,0.9539,4366.8,4365.9,3.2078]
[1756822296185,0.3953,4366.5,4365.9,3.2078]
[1756822296484,0.58214882,4366.4,4365.9,3.2078]
[1756822296688,0.58215096,4366.3,4364.8,3.2078]
[1756822296881,0.9539,4365.7,4364.8,3.2078]
[1756822297183,0.9539,4365.5,4364.8,3.2078]
[1756822298882,0.9539,4366.4,4364.9,0.9326]
[1756822299180,0.58161458,4366.3,4365.4,0.9762]
[1756822299381,0.8955,4365.8,4364.9,0.9762]
[1756822299579,3.2078,4365.9,4364.8,3.2078]
[1756822299785,0.58170607,4365.8,4364.8,3.2078]
[1756822299979,3.2078,4365.4,4364.8,3.2078]
[1756822300177,0.8955,4364.8,4363.4,0.9762]
[1756822300382,3.2078,4363.5,4362.8,1.15039806]
[1756822300577,3.2078,4363.5,4362.8,0.17419806]
[1756822300780,0.8955,4364.2,4363.2,3.2078]
[1756822301090,0.58172408,4364.1,4363.3,0.9762]
[1756822301290,0.8955,4364.2,4363.2,3.2078]
[1756822301586,0.8955,4363.5,4362.8,0.17419806]
[1756822301983,0.8955,4363.5,4362.8,1.15039806]
[1756822302181,0.8955,4364.0,4362.9,3.2078]
[1756822302584,0.8955,4364.0,4363.4,3.2078]
[1756822302784,0.263,4364.6,4363.9,3.2078]
[1756822303382,0.3693,4364.5,4363.9,3.2078]
[1756822303583,0.8955,4364.3,4363.4,3.2078]
[1756822303984,0.8955,4364.4,4363.4,3.2078]
[1756822304185,0.262,4364.3,4363.4,3.2078]
[1756822304694,0.8955,4364.2,4363.4,3.2078]
[1756822304992,0.262,4364.5,4363.5,0.9762]
[1756822305182,0.8955,4364.3,4363.4,3.2078]
[1756822305377,0.8955,4364.3,4362.9,4.184]
[1756822305583,0.8955,4363.8,4362.9,4.184]
[1756822305789,4.1033,4363.8,4362.9,4.184]
[1756822305987,3.2078,4363.3,4362.8,0.17419806]
[1756822306182,4.1033,4363.3,4362.8,0.17419806]
[1756822306382,0.8955,4363.2,4362.8,0.17419806]
[1756822306587,0.8955,4363.3,4362.8,0.17419806]
[1756822306982,0.8955,4363.1,4362.8,0.17419806]
[1756822307194,0.262,4363.2,4362.8,0.17419806]
[1756822307493,0.8955,4363.1,4362.8,0.17419806]
[1756822307693,0.8955,4362.9,4362.8,0.17419806]
[1756822309088,0.8955,4362.9,4361.7,3.35819806]
[1756822309290,0.8955,4361.9,4360.1,3.2078]
[1756822309489,0.8955,4360.9,4360.1,3.2078]
[1756822309688,1.2648,4361.5,4360.1,3.2078]
[1756822309893,0.262,4361.4,4360.8,3.2078]
[1756822310292,0.8955,4361.5,4360.8,3.2078]
[1756822310495,0.3693,4362.0,4361.3,3.2078]
[1756822310691,0.3693,4362.0,4361.8,3.2078]
[1756822310892,0.3693,4362.0,4361.3,3.2078]
[1756822310893,0.8955,4361.9,4361.3,3.2078]
[1756822311195,0.8955,4361.9,4360.9,3.5423]
[1756822311591,0.8955,4361.9,4361.1,3.2078]
[1756822312596,0.3693,4362.0,4361.6,3.2078]
[1756822312891,0.8955,4361.9,4361.6,3.2078]
[1756822313098,0.8955,4362.5,4361.6,3.2078]
[1756822313593,0.8955,4362.5,4362.1,3.2078]
[1756822313797,0.8955,4362.5,4362.1,3.5423]
[1756822313988,0.3693,4363.0,4362.1,3.2078]
[1756822314191,0.3693,4362.5,4362.1,3.2078]
[1756822314396,0.3693,4362.5,4361.7,0.262]
[1756822314397,0.8955,4362.4,4361.7,0.262]
[1756822314692,0.3693,4362.5,4361.6,3.4698]
[1756822314889,0.8955,4362.4,4361.6,3.4698]
[1756822316696,0.8955,4362.4,4362.0,3.5423]
[1756822316900,0.3693,4362.5,4361.5,0.262]
[1756822317100,0.8955,4362.4,4361.5,0.262]
[1756822317300,0.8955,4362.4,4361.4,3.2078]
[1756822317502,0.8955,4362.4,4361.4,3.4698]
[1756822317695,3.2078,4362.1,4361.4,3.2078]
[1756822317898,0.8955,4361.4,4360.9,3.2078]
[1756822318098,0.3693,4361.5,4360.9,3.2078]
[1756822318294,0.8955,4361.5,4360.9,3.2078]
[1756822318496,0.8955,4361.9,4360.8,0.262]
[1756822318696,1.6407691,4363.3,4360.8,0.262]
[1756822318697,1.1575,4362.4,4361.7,3.2078]
[1756822318896,0.58003073,4362.3,4361.6,3.2078]
[1756822319096,0.8955,4362.2,4361.6,3.2078]
[1756822320903,0.262,4362.6,4362.1,3.2078]
[1756822321202,0.8955,4362.1,4360.9,3.2078]
[1756822321503,0.8955,4361.9,4360.9,3.2078]
[1756822321703,0.58056202,4361.8,4360.9,3.2078]
[1756822321894,0.3693,4361.5,4360.7,0.262]
[1756822322096,0.8955,4361.4,4360.7,0.262]
[1756822322302,0.8955,4361.4,4360.9,3.2078]
[1756822322495,0.3693,4361.5,4360.9,3.2078]
[1756822322696,0.8955,4361.6,4360.9,3.2078]
[1756822322893,0.3693,4361.5,4360.9,3.2078]
[1756822323500,0.58086975,4361.4,4360.5,3.2078]
[1756822323805,3.2078,4361.7,4360.3,0.262]
[1756822323806,0.8955,4361.7,4361.1,3.2078]
[1756822324004,0.58083233,4361.6,4361.1,3.2078]
[1756822324307,0.8955,4362.3,4361.2,0.3345]
[1756822324605,0.59945427,4362.2,4361.9,3.2078]
[1756822324806,0.8955,4362.0,4361.9,3.2078]
[1756822325102,1.86425427,4362.0,4361.3,3.2078]
[1756822325304,0.8955,4361.4,4361.3,3.2078]
[1756822325601,0.59945427,4361.4,4361.3,3.5227]
[1756822325798,1.23057682,4362.2,4361.3,3.5227]
[1756822325799,0.59945427,4361.9,4361.3,3.5227]
[1756822325995,0.59945427,4361.8,4361.3,3.2078]
[1756822326197,0.3693,4361.5,4361.3,3.2078]
[1756822326393,0.8955,4361.4,4361.3,3.2078]
[1756822326595,1.49495427,4361.4,4361.3,3.2078]
[1756822327798,0.59945427,4361.4,4361.3,3.5227]
[1756822327998,1.23057682,4361.9,4361.3,7.2078]
[1756822328204,1.23057682,4362.7,4361.8,3.2078]
[1756822328508,2.12607682,4362.6,4362.0,3.2078]
[1756822328704,0.3693,4362.0,4361.5,3.2078]
[1756822328907,0.8955,4361.7,4361.0,3.2078]
[1756822329402,2.12607682,4361.7,4361.0,3.2078]
[1756822329602,2.12607682,4361.7,4361.1,0.261]
[1756822329802,2.12607682,4361.7,4361.5,3.2078]
[1756822329998,0.9158,4361.6,4361.1,0.261]
[1756822330301,1.23057682,4361.6,4361.1,0.261]
[1756822330503,0.9158,4361.1,4361.0,3.2078]
[1756822330704,0.3584,4361.0,4360.5,3.2078]
[1756822330904,0.9158,4360.9,4360.5,3.2078]
[1756822331101,0.3584,4361.0,4360.5,3.2078]
[1756822331303,0.9158,4360.9,4360.5,3.2078]
[1756822331503,1.23057682,4361.3,4360.6,0.261]
[1756822331704,1.2742,4361.5,4360.6,0.261]
[1756822331705,1.23057682,4361.5,4361.2,3.2078]
[1756822332201,2.14637682,4361.5,4361.2,3.2078]
[1756822332403,0.9158,4361.4,4361.2,3.2078]
[1756822332701,0.9158,4361.3,4361.2,3.2078]
[1756822333403,0.3584,4361.0,4360.6,3.2078]
[1756822333606,2.14806752,4360.7,4360.6,3.2078]
[1756822333806,1.23226752,4360.7,4360.6,3.2078]
[1756822334110,0.18790996,4360.7,4360.6,7.2078]
[1756822334304,0.18790996,4360.7,4360.6,7.4688]
[1756822335007,1.6407691,4362.1,4360.7,0.2293]
[1756822335207,1.6407691,4362.3,4362.0,3.2078]
[1756822335406,0.18810871,4362.2,4362.0,3.2078]
[1756822335602,1.10390871,4362.1,4362.0,3.2078]
[1756822335803,0.3584,4362.0,4361.5,3.2078]
[1756822336002,0.18810871,4361.9,4361.5,3.2078]
[1756822336324,2.05096138,4362.6,4361.6,4.49027]
[1756822336325,0.18810871,4361.8,4361.6,4.49027]
[1756822336610,3.78714593,4363.1,4361.7,40.8]
[1756822336611,0.9158,4363.1,4361.7,40.8]
[1756822336809,0.18813239,4363.0,4362.9,3.2078]
[1756822337714,0.18813239,4363.0,4362.9,3.4688]
[1756822338108,0.9158,4363.7,4362.9,3.4688]
[1756822338309,0.9158,4363.9,4363.0,0.261]
[1756822338508,0.9158,4363.6,4362.4,3.2078]
[1756822338709,0.3584,4363.0,4362.5,0.261]
[1756822339114,4.482,4363.5,4362.5,0.261]
[1756822339306,1.2742,4363.5,4362.5,0.261]
[1756822340108,0.9158,4362.9,4362.5,0.261]
[1756822340312,0.3584,4362.5,4362.4,3.2078]
[1756822340611,0.59150935,4362.5,4362.4,3.2078]
[1756822340809,0.59150935,4362.5,4362.4,7.4688]
[1756822341311,0.9158,4363.2,4362.4,7.4688]
[1756822341503,0.3584,4363.0,4362.5,3.2078]
[1756822341709,0.59130912,4362.9,4362.5,3.2078]
[1756822342116,0.59130912,4362.9,4362.6,0.261]
[1756822342310,0.59130912,4362.8,4362.6,0.261]
[1756822342513,0.3584,4363.5,4362.6,0.261]
[1756822342706,0.59121964,4363.4,4363.1,3.2078]
[1756822343012,0.59121964,4363.3,4363.2,0.261]
[1756822343217,0.9158,4363.8,4363.2,0.261]
[1756822343411,3.2078,4364.8,4363.7,3.2078]
[1756822343612,1.2742,4364.5,4363.7,3.4688]
[1756822343806,0.59075939,4364.4,4363.7,3.4688]
[1756822344014,0.59075939,4364.3,4363.7,3.4688]
[1756822344213,0.9158,4364.4,4363.7,3.2078]
[1756822344416,0.3584,4364.0,4363.2,3.2078]
[1756822344713,0.3584,4363.5,4363.2,3.2078]
[1756822344918,0.9158,4363.4,4363.2,3.2078]
[1756822345110,0.3584,4363.5,4363.2,3.2078]
[1756822345311,0.3584,4364.0,4363.2,3.2078]
[1756822345512,0.59028202,4363.9,4363.2,3.2078]
[1756822345712,0.59028202,4363.8,4363.2,3.2078]
[1756822345912,0.3584,4364.0,4363.7,3.2078]
[1756822346220,0.9158,4364.8,4363.7,3.2078]
[1756822346411,3.2078,4365.3,4364.4,3.2078]
[1756822346607,0.9158,4365.2,4364.9,3.2078]
[1756822346909,0.3584,4366.0,4364.9,3.4688]
[1756822347109,0.9158,4366.3,4365.7,3.2078]
[1756822347314,0.3584,4366.5,4365.8,0.261]
[1756822347517,3.5662,4367.0,4366.4,3.2078]
[1756822347518,0.3584,4367.0,4366.4,3.2078]
[1756822347709,0.3584,4366.5,4365.9,3.2078]
[1756822347911,1.2742,4366.0,4365.9,3.2078]
[1756822348219,1.2742,4366.0,4362.6,1.03135]
[1756822348220,1.2742,4365.5,4364.9,3.4688]
[1756822348416,0.9158,4365.4,4365.0,0.261]
[1756822348617,0.3584,4365.5,4365.0,0.261]
[1756822348814,0.9158,4365.4,4365.0,0.261]
[1756822349011,1.2742,4365.0,4364.3,40.8]
[1756822349211,0.9158,4365.4,4364.9,3.2078]
[1756822349411,0.3584,4365.0,4364.9,3.2078]
[1756822349613,0.3584,4365.5,4364.9,3.4688]
[1756822349816,0.9158,4365.8,4365.4,3.2078]
[1756822350010,0.9158,4365.8,4365.5,0.261]
[1756822350213,0.9158,4366.4,4365.5,0.261]
[1756822350516,0.9158,4366.3,4366.2,3.2078]
[1756822350915,1.2742,4367.0,4366.2,3.2078]
[1756822351216,0.9158,4367.0,4366.7,3.2078]
[1756822351418,0.9158,4367.6,4366.8,0.261]
[1756822352013,0.9158,4367.4,4367.2,3.2078]
[1756822352211,1.2742,4368.0,4367.3,0.261]
[1756822352413,0.9158,4367.9,4367.3,0.261]
[1756822353217,0.3584,4367.5,4367.2,3.2078]
[1756822353719,0.9158,4367.4,4367.2,3.2078]
[1756822353919,0.3584,4367.5,4367.2,3.2078]
[1756822354123,3.5662,4368.0,4367.2,3.4688]
[1756822354720,0.9158,4367.9,4367.2,3.4688]
[1756822355615,0.9158,4367.9,4367.7,3.2078]
[1756822355816,1.2742,4368.5,4367.7,3.2078]
[1756822356220,0.9158,4368.4,4367.7,3.2078]
[1756822356823,0.9158,4368.4,4367.8,0.26]
[1756822357210,0.9158,4367.9,4367.7,3.2078]
[1756822357519,0.3584,4368.0,4367.8,0.26]
[1756822357719,0.9158,4368.4,4367.8,0.26]
[1756822357909,0.3584,4368.0,4367.7,3.2078]
[1756822358114,0.9158,4367.9,4367.7,3.2078]
[1756822358312,0.3584,4368.5,4367.7,3.4678]
[1756822359620,0.3584,4368.5,4367.7,3.2078]
[1756822359923,0.9464,4367.9,4367.7,3.2078]
[1756822360320,0.3759,4368.0,4367.7,3.2078]
[1756822360515,0.9464,4367.9,4367.7,3.2078]
[1756822360910,0.3759,4368.0,4367.7,3.2078]
[1756822361320,0.3759,4368.0,4367.3,0.26]
[1756822361321,0.3759,4367.5,4367.3,0.26]
[1756822361520,0.9464,4367.4,4367.1,3.2078]
[1756822362025,0.9464,4366.9,4366.6,3.4678]
[1756822362222,0.3759,4367.0,4366.6,3.4678]
[1756822362415,0.9464,4366.9,4366.6,3.4678]
[1756822362621,0.9464,4367.4,4366.6,3.4678]
[1756822362919,0.9464,4366.9,4366.6,3.2078]
[1756822363123,0.3759,4367.0,4366.6,3.2078]
[1756822363419,0.9464,4366.9,4366.6,3.2078]
[1756822363624,1.3223,4367.5,4366.7,0.26]
[1756822364013,1.3223,4367.5,4366.6,3.2078]
[1756822364014,0.9464,4367.4,4366.6,3.2078]
[1756822364218,0.9464,4366.9,4366.0,3.2078]
[1756822364422,0.3759,4367.0,4366.1,0.26]
[1756822364628,0.3759,4366.5,4366.0,3.2078]
[1756822365124,0.9464,4366.4,4366.0,3.2078]
[1756822365319,0.3759,4366.5,4366.0,3.2078]
[1756822365829,0.3759,4366.5,4365.5,3.2078]
[1756822366027,0.9464,4365.9,4365.1,0.26]
[1756822366227,0.3759,4365.5,4364.4,3.2078]
[1756822366431,0.9464,4365.4,4364.5,0.26]
[1756822366623,1.2064,4365.4,4364.5,0.26]
[1756822367328,0.9464,4365.4,4364.5,0.26]
[1756822367520,0.9464,4365.4,4364.9,3.2078]
[1756822367931,0.3759,4365.5,4364.9,3.2078]
[1756822368927,0.9464,4365.4,4364.9,3.2078]
[1756822369131,1.3223,4365.0,4364.9,3.2078]
[1756822369630,0.9464,4364.9,4364.8,0.26]
[1756822370130,0.3759,4365.0,4364.4,3.4678]
[1756822370432,0.9464,4364.9,4364.4,3.4678]
[1756822370629,0.3759,4365.0,4364.4,3.4678]
[1756822371032,1.3223,4365.0,4364.4,3.4678]
[1756822371332,1.3223,4365.5,4364.4,3.4678]
[1756822371530,3.2078,4366.3,4364.9,3.2078]
[1756822371731,1.3223,4366.0,4365.0,0.26]
[1756822371923,1.3223,4366.0,4365.4,3.2078]
[1756822372126,3.2078,4366.3,4365.5,0.26]
[1756822372328,1.3223,4366.5,4366.0,3.2078]
[1756822372530,0.3759,4366.5,4366.0,3.2078]
[1756822372833,0.9464,4366.4,4366.0,3.2078]
[1756822373227,1.3223,4367.0,4366.0,3.2078]
[1756822373427,0.9464,4366.9,4366.5,3.2078]
[1756822374332,0.3759,4367.0,4366.5,3.2078]
[1756822374832,0.9464,4366.9,4366.5,3.2078]
[1756822375034,0.3759,4367.0,4366.5,3.2078]
[1756822375233,0.9464,4366.9,4366.5,3.2078]
[1756822375639,0.3759,4367.0,4366.5,3.2078]
[1756822376230,0.9464,4366.9,4366.2,0.26]
[1756822377034,0.3759,4366.5,4366.2,0.26]
[1756822377436,1.3223,4366.0,4365.5,0.26]
[1756822377639,1.3223,4366.5,4365.5,0.26]
[1756822377838,1.3223,4366.5,4365.9,3.2078]
[1756822378338,4.5301,4367.0,4365.9,3.2078]
[1756822378531,0.9464,4366.9,4365.9,3.2078]
[1756822378728,0.9464,4366.9,4366.4,3.2078]
[1756822379242,1.3223,4367.0,4366.4,3.2078]
[1756822379638,1.3223,4366.5,4366.4,3.2078]
[1756822380143,4.5301,4366.5,4365.8,0.26]
[1756822380336,4.5301,4366.5,4364.1,32.987]
[1756822380337,0.3759,4366.0,4364.8,3.2078]
[1756822380639,0.9464,4365.7,4364.8,3.2078]
[1756822380842,0.3759,4366.0,4365.3,3.2078]
[1756822381039,0.9464,4365.9,4365.3,3.2078]
[1756822381444,0.9464,4366.4,4365.8,3.2078]
[1756822381641,0.3759,4366.0,4365.8,3.2078]
[1756822381942,0.9464,4365.9,4365.8,3.2078]
[1756822382144,1.5326242,4365.9,4365.8,3.2078]
[1756822382336,0.9464,4365.8,4365.5,0.26]
[1756822382537,0.3759,4366.5,4365.5,0.26]
[1756822382538,0.5862242,4365.7,4365.5,0.26]
[1756822382744,1.3223,4365.5,4365.3,3.2078]
[1756822382946,1.3223,4366.0,4365.3,3.2078]
[1756822383248,0.58626543,4365.9,4365.3,3.2078]
[1756822383438,0.58626543,4365.8,4365.3,0.22905999]
[1756822383640,1.53266543,4365.7,4365.6,3.2078]
[1756822383839,0.58626543,4365.7,4365.6,3.2078]
[1756822384547,0.9464,4366.3,4365.6,3.2078]
[1756822384742,0.58621143,4366.2,4365.6,3.2078]
[1756822384941,0.9464,4365.9,4365.1,3.2078]
[1756822385142,0.9464,4365.4,4365.1,3.2078]
[1756822385349,0.9464,4365.2,4365.1,3.2078]
[1756822385945,1.53268407,4365.2,4365.1,3.2078]
[1756822386945,0.9464,4364.9,4364.3,0.259]
[1756822387147,0.9464,4364.4,4363.9,3.2078]
[1756822387347,0.9464,4364.2,4363.9,3.2078]
[1756822387549,0.3759,4364.5,4363.9,3.2078]
[1756822387748,0.58638434,4364.4,4363.9,3.2078]
[1756822387942,0.9464,4364.7,4363.9,3.2078]
[1756822388250,0.58639569,4364.6,4364.0,0.259]
[1756822388452,0.58639569,4364.5,4364.0,0.259]
[1756822388643,0.58639569,4364.4,4364.0,0.259]
[1756822389040,0.9285,4364.3,4363.9,3.2078]
[1756822389243,0.58641788,4364.2,4363.9,3.4668]
[1756822389445,0.9285,4364.8,4363.9,3.4668]
[1756822389746,0.58640177,4364.7,4364.4,3.2078]
[1756822389948,0.9285,4365.2,4364.5,0.259]
[1756822390149,0.58632826,4365.1,4364.5,0.259]
[1756822390348,0.58632826,4365.0,4364.5,0.259]
[1756822390548,3.2078,4366.4,4364.9,3.2078]
[1756822390549,2.512758,4366.0,4364.9,3.2078]
[1756822390844,0.58625727,4365.9,4365.0,0.259]
[1756822391049,1.2755,4366.5,4365.8,3.2078]
[1756822391346,1.51020932,4366.4,4366.3,3.2078]
[1756822391848,0.347,4366.0,4365.5,0.259]
[1756822392049,0.347,4365.5,4365.2,3.2078]
[1756822392246,1.2755,4365.5,4364.9,0.259]
[1756822392435,1.2755,4365.5,4364.6,3.2078]
[1756822392436,0.9285,4365.4,4365.0,0.259]
[1756822392643,0.9285,4366.1,4365.1,3.2078]
[1756822392842,0.9285,4365.9,4365.6,3.2078]
[1756822393051,0.57858554,4365.8,4365.1,3.4668]
[1756822393247,0.9285,4365.9,4365.2,0.259]
[1756822393448,0.57857483,4365.8,4365.2,0.259]
[1756822393649,0.9285,4365.4,4365.2,0.259]
[1756822393845,0.40937282,4365.5,4365.2,0.259]
[1756822394156,0.57862729,4365.4,4364.6,3.4668]
[1756822394446,0.9285,4364.9,4364.6,3.2078]
[1756822394652,0.347,4365.0,4364.6,3.2078]